Cogmind - Beta 13 @@@ ROGUE MODE // 2024.04.20 @ 17:54:06 Player: Cherman0 Result: Destroyed by D-53 Grenadier with Mini Grenade Launcher Performance ------------- Evolutions (0) 0 Regions Visited (4) 800 Robots Destroyed (42) 210 Value Destroyed (532) 532 Prototype IDs (27) 540 Alien Tech Used (0) 0 Bonus (360) 360 TOTAL SCORE: 2442 Bonus ------- Follower Combat Kills 60 Aligned with FarCom 300 Cogmind --------- Core Integrity 0/250 Matter 253/300 Energy 126/170 System Corruption 0% Temperature Cool (71) Movement Treading (320) Ox2 Location -9/Mines Parts ------- > --- POWER (1) -------- Makeshift Power Source > --- PROPULSION (2) --- Light Treads > --- UTILITY (2) ------ High-capacity Storage Unit Hardened Light Armor Plating > --- WEAPON (2) ------- Heavy EM Pulse Gun Makeshift Shrapnel Gun > --- INVENTORY (20) --- Light Treads Flying Fortress v7 Improved Heat Sink Medium Storage Unit High-capacity Matter Pod (200) Structural Scanner Improved Terrain Scanner Hardened Light Armor Plating Hardened Light Armor Plating Tractor Beam Heavy EM Pulse Gun Particle Cannon Particle Cannon Light Cannon Rocket Launcher Heavy Hammer Peak State ------------ > --- POWER ------------ Light Nuclear Core > --- PROPULSION ------- Light Treads Light Treads > --- UTILITY ---------- High-capacity Storage Unit Hardened Light Armor Plating > --- WEAPON ----------- Particle Cannon Makeshift Shrapnel Gun > --- INVENTORY -------- Makeshift Power Source Light Treads Flying Fortress v7 Improved Heat Sink Medium Storage Unit High-capacity Matter Pod Structural Scanner Improved Terrain Scanner Hardened Light Armor Plating Hardened Light Armor Plating Tractor Beam Heavy EM Pulse Gun Heavy EM Pulse Gun Particle Cannon Light Cannon Grenade Launcher Rocket Launcher [Rating: 20] Favorites ----------- Power Light Nuclear Core Engine Ion Engine Power Core Light Nuclear Core Propulsion Light Treads Treads Light Treads Leg Aluminum Leg Utility High-capacity Storage Unit Device Seismic Detector Storage High-capacity Storage Unit Protection Hardened Light Armor Plating Weapon Heavy EM Pulse Gun Energy Gun Heavy EM Pulse Gun Energy Cannon Particle Cannon Ballistic Gun Makeshift Shrapnel Gun Ballistic Cannon Light Cannon Launcher Rocket Launcher Build | -11 -10 -10 -10 -9 ------- Run | Yrd Mat Min Exi Min Slots Evolved . | . . . . . Power . | . . . . . Propulsion . | . . . . . Utility . | . . . . . Weapon . | . . . . . Parts Attached 26 | 4 9 4 1 8 Power 3 | . 1 1 . 1 Engine 2 | . 1 . . 1 Core 1 | . . 1 . . Reactor . | . . . . . Propulsion 3 | 2 1 . . . Treads 3 | 2 1 . . . Leg . | . . . . . Wheel . | . . . . . Hover . | . . . . . Flight . | . . . . . Utility 6 | 2 2 . 1 1 Device 2 | 2 . . . . Storage 2 | . 2 . . . Processor . | . . . . . Hackware . | . . . . . Protection 2 | . . . 1 1 Artifact . | . . . . . Weapon 14 | . 5 3 . 6 Energy Gun 5 | . 3 1 . 1 Energy Cannon 1 | . . 1 . . Ballistic Gun 2 | . . 1 . 1 Ballistic Cannon 1 | . 1 . . . Launcher 5 | . 1 . . 4 Special Weapon . | . . . . . Impact Weapon . | . . . . . Slashing Weapon . | . . . . . Piercing Weapon . | . . . . . Special Melee Weapon . | . . . . . Unidentified Prototypes . | . . . . . Parts Lost 4 | . . 1 . 3 Power 1 | . . . . 1 Propulsion 1 | . . . . 1 Utility . | . . . . . Weapon 2 | . . 1 . 1 Highest Loss Streak 2 | . . 1 . 2 To Critical Strikes . | . . . . . Average Slot Usage (%) 99 | . 100 99 100 94 Engine 5 | . 14 4 . . Core 8 | . . 9 14 13 Treads 27 | . 28 28 28 27 Device 10 | . 14 14 4 . Storage 14 | . 14 14 14 14 Protection 3 | . . . 9 14 Energy Gun 14 | . 25 19 . . Energy Cannon 4 | . . 4 14 2 Ballistic Gun 5 | . . 4 14 11 Launcher 1 | . . . . 8 Naked Turns . | . . . . . Heaviest Build 58 | 12 52 52 56 58 Greatest Support 40 | 40 40 40 40 40 Greatest Overweight (x) 1 | . 1 1 1 1 Average Overweight (x) . | . . 1 1 1 Largest Inventory Capacity 20 | 8 20 20 20 20 Average Capacity 19 | 8 17 20 20 20 Most Carried 20 | 8 20 20 20 20 Average Carried 18 | 5 14 19 19 19 Final Capacity 20 | 8 20 20 20 20 Final Carried 20 | 4 20 20 20 19 Class Distribution -------------------- 100% | Mutant Dominant Class ---------------- Mutant | -10/Materials Mutant | -10/Mines Mutant | -10/Exiles Mutant | -9/Mines Resources | -11 -10 -10 -10 -9 ----------- Run | Yrd Mat Min Exi Min Matter Collected 908 | 246 174 203 . 285 Remotely . | . . . . . Salvage Created 794 | 97 366 136 . 195 Parts 73 | 5 33 13 . 22 Haulers Intercepted 2 | . 2 . . . Recyclers Shooed 1 | . 1 . . . Parts Field Recycled . | . . . . . Retrieved Matter . | . . . . . Parts Self-Destructed . | . . . . . Prevented . | . . . . . Kills | -11 -10 -10 -10 -9 ------- Run | Yrd Mat Min Exi Min Combat Hostiles Destroyed 47 | . 9 8 . 30 Guns 19 | . 6 7 . 6 Cannons 3 | . . 1 . 2 AOE 25 | . 3 . . 22 Classes Destroyed 11 | 2 4 1 . 4 Worker 2 | . . 1 . 1 Builder 1 | . 1 . . . Tunneler 1 | 1 . . . . Hauler 2 | . 2 . . . Recycler 2 | 1 1 . . . Watcher 3 | . 3 . . . Swarmer 28 | . 9 8 . 11 Grunt 1 | . . . . 1 Duelist 1 | . . . . 1 Demolisher 1 | . . . . 1 Assembled 16 | . . . . 16 Best Kill Streak 13 | 2 4 5 . 13 Combat Bots Only 13 | . 3 4 . 13 Max Kills in Single Turn 5 | 1 3 1 . 5 Gunslinging . | . . . . . Exploded 4 | . 2 . . 4 Melee . | . . . . . Uniques/NPCs Destroyed . | . . . . . Combat | -11 -10 -10 -10 -9 -------- Run | Yrd Mat Min Exi Min Hostile Shots Fired 112 | . 35 24 . 53 Missed 33 | . 10 8 . 15 Damage Taken 1247 | . 251 142 . 854 Core 254 | . 68 38 . 148 Absorbed by Shields . | . . . . . Core Remaining (%) 100 | 100 . . . . Volleys Fired 82 | 6 22 16 . 38 Largest 2 | 2 2 2 . 2 Hottest 101 | 70 90 92 . 101 Shots Fired 125 | 12 43 27 . 43 Gun 95 | 12 38 24 . 21 Cannon 13 | . 4 3 . 6 Launcher 17 | . 1 . . 16 Special . | . . . . . Kinetic 34 | 6 4 6 . 18 Thermal 19 | 6 4 3 . 6 Explosive 17 | . 1 . . 16 Electromagnetic 55 | . 34 18 . 3 Robot Hit Streak 12 | 5 12 3 . 5 Robot Miss Streak 7 | 3 5 4 . 7 Penetration Max . | . . . . . Secondary Targets 1 | . . . . 1 Max Gunslinging Chain 1 | . . . . 1 Shots Hit Robots 63 | 7 19 17 . 20 Core Hits 80 | 4 19 8 . 49 Critical Kills . | . . . . . Critical Parts Destroyed . | . . . . . Critical Strikes 1 | . 1 . . . Corrupt 1 | . 1 . . . Melee Attacks . | . . . . . Impact . | . . . . . Slashing . | . . . . . Piercing . | . . . . . Sneak Attacks . | . . . . . Combat Hostiles . | . . . . . Follow-up Attacks . | . . . . . Damage Inflicted 2630 | 72 557 330 . 1671 Guns 886 | 72 324 225 . 265 Cannons 84 | . . 42 . 42 Explosions 1580 | . 189 27 . 1364 Melee . | . . . . . Ramming 80 | . 44 36 . . Kinetic 383 | 35 . 83 . 265 Thermal 260 | 37 112 69 . 42 Explosive 1491 | . 127 . . 1364 Electromagnetic 416 | . 274 142 . . Impact . | . . . . . Slashing . | . . . . . Piercing . | . . . . . Highest Corruption . | . . . . . Average Corruption . | . . . . . Corruption Purged . | . . . . . Corruption Blocked . | . . . . . Overload Shots . | . . . . . Overflow Damage 32 | . . . . 32 Projectiles 12 | . . . . 12 Explosions 20 | . . . . 20 Melee . | . . . . . Knockbacks . | . . . . . Impact . | . . . . . Kinetic . | . . . . . Secondary . | . . . . . Self-Inflicted Damage 88 | . 13 6 . 69 Shots 5 | . 1 1 . 3 Rammed 9 | . 6 3 . . Targets Rammed 10 | . 6 4 . . Kicked . | . . . . . Crushed 1 | . . 1 . . Highest Temperature 180 | 100 180 156 . 144 Average Temperature 52 | 44 57 71 . 38 Received Heat Transfer 47 | . . 27 . 20 Siege Activations . | . . . . . Robots Corrupted . | . . . . . Combat Hostiles . | . . . . . Parts Fried 4 | . 3 1 . . Impact Corruptions . | . . . . . Robots Melted . | . . . . . Combat Hostiles . | . . . . . Parts Melted . | . . . . . Heat Transferred 557 | 111 248 124 . 74 Parts Sabotaged . | . . . . . Parts Stolen . | . . . . . Parts Stripped . | . . . . . Power Chain Reactions 2 | . 1 1 . . Alert | -11 -10 -10 -10 -9 ------- Run | Yrd Mat Min Exi Min Peak Influence 358 | 10 166 145 . 358 Initial 33 | . 6 33 . . Average 97 | 8 72 59 . 244 Maximum Alert Level 1 | . . . . 1 Low Security (%) 88 | 100 100 100 . 35 Level 1 11 | . . . . 64 Level 2 . | . . . . . Level 3 . | . . . . . Level 4 . | . . . . . Level 5 . | . . . . . High Security . | . . . . . Max Security . | . . . . . Squads Dispatched . | . . . . . Investigation . | . . . . . Extermination . | . . . . . Reinforcement . | . . . . . Assault . | . . . . . Garrison . | . . . . . Intercept . | . . . . . Searches Triggered . | . . . . . Construction Impeded . | . . . . . Haulers Reinforced . | . . . . . Active Scanning Responses . | . . . . . Cargo Convoy Interrupts . | . . . . . Stealth | -11 -10 -10 -10 -9 --------- Run | Yrd Mat Min Exi Min Distress Signals . | . . . . . Communications Jammed . | . . . . . Distress Signals . | . . . . . Times Spotted 51 | . 14 11 . 26 Peak Tracking Total 7 | . 4 6 . 7 Tactical Retreats 2 | . 1 1 . . Traps | -11 -10 -10 -10 -9 ------- Run | Yrd Mat Min Exi Min Traps Triggered 1 | . 1 . . . Indirectly . | . . . . . Trap Hack Attempts . | . . . . . Triggered . | . . . . . Disarmed . | . . . . . Reprogrammed . | . . . . . Reused . | . . . . . Traps Extracted . | . . . . . Installed . | . . . . . Triggered . | . . . . . Machines | -11 -10 -10 -10 -9 ---------- Run | Yrd Mat Min Exi Min Machines Disabled 4 | . 1 . . 3 Max in Single Turn 1 | . 1 . . 1 Machines Repaired . | . . . . . Machines Dismantled . | . . . . . Machines Sabotaged . | . . . . . Overloaded Fab Kills . | . . . . . Hacking | -11 -10 -10 -10 -9 --------- Run | Yrd Mat Min Exi Min Machines Accessed 10 | . 8 . 2 . Terminals 8 | . 8 . . . Fabricators . | . . . . . Repair Stations . | . . . . . Recycling Units . | . . . . . Scanalyzers . | . . . . . Garrison Access . | . . . . . Total Hacks 21 | . 19 . 2 . Successful 7 | . 5 . 2 . Failed 14 | . 14 . . . Catastrophic 2 | . 2 . . . Database Lockouts . | . . . . . Manual 13 | . 12 . 1 . Terminals 19 | . 19 . . . Fabricators . | . . . . . Repair Stations . | . . . . . Recycling Units . | . . . . . Scanalyzers . | . . . . . Garrison Access . | . . . . . Terminal Hacks 7 | . 5 . 2 . Record 1 | . . . 1 . Robot Analysis 1 | . 1 . . . Prototype ID Bank 3 | . 3 . . . Registered Components 1 | . 1 . . . Derelict Proto ID Bank 1 | . . . 1 . Fabricator Hacks . | . . . . . Repair Station Hacks . | . . . . . Recycling Unit Hacks . | . . . . . Scanalyzer . | . . . . . Garrison Access Hacks . | . . . . . Unauthorized Hacks . | . . . . . Terminals . | . . . . . Fabricators . | . . . . . Repair Stations . | . . . . . Recycling Units . | . . . . . Scanalyzers . | . . . . . Garrison Access . | . . . . . Data Cores Recovered . | . . . . . Used . | . . . . . Hacking Detections 8 | . 8 . . . Full Trace Events . | . . . . . Feedback Events . | . . . . . Feedback Blocked . | . . . . . Robot Schematics Acquired . | . . . . . Robots Built . | . . . . . Authchips . | . . . . . Time . | . . . . . Total Robot Build Rating . | . . . . . Part Schematics Acquired . | . . . . . Parts Built . | . . . . . Authchips . | . . . . . Time . | . . . . . Total Part Build Rating . | . . . . . Parts Repaired . | . . . . . Time . | . . . . . Parts Recycled . | . . . . . Recycled Matter . | . . . . . Retrieved Matter . | . . . . . Retrieved Components . | . . . . . Parts Scanalyzed . | . . . . . Part Schematics Acquired . | . . . . . Parts Damaged . | . . . . . Bothacking | -11 -10 -10 -10 -9 ------------ Run | Yrd Mat Min Exi Min Used RIF Installer . | . . . . . Robots Hacked . | . . . . . Non-combat . | . . . . . Combat . | . . . . . Robot Hacks Applied . | . . . . . Relay Couplers Released . | . . . . . Fabnet Peak Effective % . | . . . . . Robots Rewired . | . . . . . Allies Hacked . | . . . . . Hacks Repelled . | . . . . . Allies | -11 -10 -10 -10 -9 -------- Run | Yrd Mat Min Exi Min Total Allies 2 | . . 2 . . Largest Group 2 | . . 2 . . Highest-Rated Group 42 | . . 42 . . Highest-Rated Ally 31 | . . 31 . . Total Orders . | . . . . . Ally Attacks 7 | . . 7 . . Total Damage 107 | . . 107 . . Kills 2 | . . 2 . . Allies Corrupted . | . . . . . Allies Melted . | . . . . . Intel | -11 -10 -10 -10 -9 ------- Run | Yrd Mat Min Exi Min Robot Analysis Total 1 | . 1 . . . Derelict Logs Recovered 2 | . . 2 . . Drone Launches . | . . . . . Drone Recoveries . | . . . . . Exploration | -11 -10 -10 -10 -9 ------------- Run | Yrd Mat Min Exi Min Turns Passed 4824 | 53 1457 1767 807 740 Spaces Moved 1992 | 20 665 704 335 268 Core . | . . . . . Treads 1981 | 9 665 704 335 268 Legs 11 | 11 . . . . Wheels . | . . . . . Hover . | . . . . . Flight . | . . . . . Fastest Speed 120 | 120 160 240 240 240 Average Speed 226 | 138 201 240 240 240 Slowest Speed 240 | 160 240 240 240 240 Overloaded Moves . | . . . . . Propulsion Burnouts . | . . . . . Robots Hopped . | . . . . . Cave-ins Triggered . | . . . . . Exploration Rate (%) 64 | 3 96 98 77 46 Regions Visited 4 Branch Regions 3 Pre-discovered Areas 2 | . . 1 1 . Known Exits Taken . | . . . . . Unknown Exits Taken 4 | 1 1 1 1 . Scrap Searched 2 | . . 1 . 1 Spaces Dug . | . . . . . Terrain Destroyed 116 | . 12 5 . 99 Melee . | . . . . . Projectile . | . . . . . AOE 116 | . 12 5 . 99 Terrain Rammed . | . . . . . Walls Destroyed . | . . . . . Machines Disabled . | . . . . . Actions | -11 -10 -10 -10 -9 --------- Run | Yrd Mat Min Exi Min Total 2183 | 36 735 753 340 319 Wait 25 | . 6 15 . 4 Move 1988 | 19 664 703 334 268 Hop . | . . . . . Pick Up 30 | 3 20 5 1 1 Fast Attach 1 | . . 1 . . Attach 6 | 3 . 1 . 2 Detach . | . . . . . Swap 19 | 1 9 2 1 6 Drop 22 | 4 8 6 4 . Fire 82 | 6 22 16 . 38 Melee . | . . . . . Ram . | . . . . . Kick . | . . . . . Crush 10 | . 6 4 . . Escape Stasis . | . . . . . Rewire . | . . . . . Trap . | . . . . . Miscellaneous . | . . . . . Route ------- -11/Scrapyard -10/Materials (discovered 4 exits: [*Mat x3] / [*Min]) -10/Mines (discovered 3 exits: [*Mat x2] / *Exi) -10/Exiles -9/Mines (discovered 1 exit: [*Mat]) History --------- Turn | Location | Event 18 | -11/Scrapyard | Discovered new exit (range 1) 54 | -11/Scrapyard | Entered Materials 332 | -10/Materials | Build established: Mutant 356 | -10/Materials | Discovered new exit (range 13) 502 | -10/Materials | Discovered new exit (range 16) 650 | -10/Materials | Discovered new exit (range 16) 842 | -10/Materials | Discovered new exit (range 10) 1511 | -10/Materials | Entered Mines 1712 | -10/Mines | Received a Rocket Launcher from a helpful Derelict 1841 | -10/Mines | Deemed a non-threat by the Exiles lab entrance 1844 | -10/Mines | Discovered new exit (range 5) 1959 | -10/Mines | Discovered new exit (range 14) 2424 | -10/Mines | Learned Materials garrison access intel 2424 | -10/Mines | Discovered new exit (range 10) 2485 | -10/Mines | Learned location of Mines (-9) 2734 | -10/Mines | A weapon hastily lodged in a ceiling crevice suddenly fell to the ground 2925 | -10/Mines | Found a hidden stash of uninstalled traps 3278 | -10/Mines | Entered Exiles 3336 | -10/Exiles | Met 8R-AWN 3377 | -10/Exiles | Met EX-HEX 3456 | -10/Exiles | Met EX-BIN 3485 | -10/Exiles | Aligned with FarCom system 3487 | -10/Exiles | Given EX-Vault access code 3542 | -10/Exiles | Opened EX-Vault 3560 | -10/Exiles | Found Flying Fortress v7 3609 | -10/Exiles | Warned to stay clear of 0b10 Research branches 3749 | -10/Exiles | Met EX-DEC 3802 | -10/Exiles | Visited The Gauntlet 3969 | -10/Exiles | Learned location of Zion (-6) 4051 | -10/Exiles | Discovered new exit (range 14) 4085 | -10/Exiles | Left Exiles lab with Flying Fortress v7 4085 | -10/Exiles | Entered Mines 4179 | -9/Mines | Discovered new exit (range 11) 4294 | -9/Mines | Assembled infested the area 4335 | -9/Mines | Core integrity fell below 50% 4377 | -9/Mines | Destroyed 13 combat bots 4816 | -9/Mines | Core integrity fell below 20% 4825 | -9/Mines | Destroyed by D-53 Grenadier with Mini Grenade Launcher Last Messages --------------- 04735_ Searching scrap... 04735_ Found Lrg. Storage Unit. 04735_ Found Hrd. Light Armor Plating. 04735_ Found Beam Cannon. 04735_ Found Hvy. Hammer. 04735_ Found 23 Matter. 04736_ Acquired 23 matter. 04740_ Acquired Hvy. Hammer. 04751_ U-05 Engineer lays Concrete. 04790_ U-05 Engineer builds a Wall. 04805_ U-05 Engineer lays Concrete. 04812_ U-05 Engineer builds a Wall. 04817_ Lgt. Nuclear Core destroyed. 04819_ Lgt. Treads destroyed. 04820_ D-53 Grenadier destroyed. 04820_ Switching to secondary target: D-53 Grenadier. 04821_ U-05 Engineer lays Concrete. 04823_ K-01 Serf collects debris. 04824_ The unstable cave ceiling collapses. 04824_ U-05 Engineer lays Concrete. Map ----- +----------------------------------------------------+ | ?????????????????????????????????????????????????? | | ????????????????????????????????????????????####?? | | ?????????????????????????#################### ### | | ?????????????????????????# | | ?????????????????????????# " | | ???????????????#####?????# ############## ### | | ??????????????## !##??### ####?### ##?# ##?? | | ?????????????## ! ##?# # ## ### #?## ##??? | | ?????????????# ] #?# # # # # #??####???? | | ?????????????# #?### ## ## ##?#### ##?? | | ?????????????# #### # ### ## | | ?????????????## #### # ### ## | | ??????????????## #### # ############# | | ???????????????# ### # ##?#" | | ??????????###### [ # ####### ######### | | ??????????# # == # ##??# ## # # | | ??????????# ######### =k* ###???# #### ? | | ??????????# #??????### [ ##????# #??###### ?? | | ??????????# #??????#### = #?????# #???????##?? | | ??????????# #????????##d #?????# #??????????? | | ??????????# #???????## u #?????# #??????????? | | ??????????# #??????## u##?????# #??????????? | | ??????????# #??????# ##?????# #??????????? | | ??????????# #??????# #?????# #??####????? | | ??????????# #??????## #?????# #### ##??## | | ??????????? ????????# @ #?????# # # #?## | | ???????????#????????# # ##????# ## ### | | ????????????????????# ##??## | | ????????????????????## #### | | ?????????????????????#### ## ! | | ????????????????????????## t ### | | ?????????????????????????# ## ##?## | | ?????????????????????????# ####### #???#### | | ?????????????????????????# #?????## #??????? | | ?????????????????????????# #??????# #??????? | | ?????????????????????????# #?????# ##??????? | | ?????????????????????????# #?????# ##???????? | | ?????????????????????????# #?????# ##????????? | | ?????????????????????????# #?????## ##?????????? | | ?????????????????????????# #??????####??????????? | | ????????????????????????## ###??????????????????? | | ????????????????????????# #??????????????????? | | ????????????????????????# #??????????????????? | | ???????????????????????## #??????????????????? | | ???????????????????????# < #??????????????????? | | ???????????????????????# #??????????????????? | | ???????????????????????# #??????????????????? | | ???????????????????????###= ###??????????????????? | | ????????????????????????##[###???????????????????? | | ????????????????????????##=##### ???????? | +----------------------------------------------------+ Best States ------------- Heat Dissipation 25 Energy Generation 15 Energy Capacity 250 Matter Stores 300 Matter Capacity 300 Sight Range 16 Terrain Scan Range 16 Terrain Scan Density 10 Armor Coverage 150 Evasion (%) 55 Recoil Reduction 2 Item Schematics ----------------- None Robot Schematics ------------------ None Fabricated ------------ Nothing Alien Tech Used ----------------- None Achievements -------------- None Challenges ------------ None Game ------ Seed CarbideFortressCore Manual? 0 Play Time 00:29:21 Cumulative 54.9 hours Start 2024.04.20 @ 17:25:39 End 2024.04.20 @ 17:54:06 Sessions 1 Manual Loads 0 Difficulty Rogue Special Mode None Game No. 33 Rogue 33 Adventurer 0 Explorer 0 Win Type - Total 0 Types 0/0/0/0/0/0/0/0/0 Lore% 27 Gallery% 36 Achievement% 32 Wizard Run 0 Options --------- Layout 0 ASCII 0 Keyboard 0 Movement Numpad Keybinds 1 Fullscreen 1 Font 18/SmallcapsGlow Map View 76x50 Zoom Use 0% Tactical HUD 1 Map Filters NONE Filters NONE Steam 1 RUN: e71b1811-34bc-4d13-adbd-f4e624354204